fUST/lending_fUST_20260630
["ID","MTS","AMOUNT","RATE_DAILY","PERIOD"]
[426775415,1782815438000,-1297.43588522,0.00029202,2]
[426775416,1782815438000,-372.04614604,0.00029202,2]
[426775418,1782815438000,-503.775607,0.00029206,2]
[426775421,1782815438000,-500.0,0.00029206,2]
[426775423,1782815438000,-376.1272041,0.00029206,2]
[426775420,1782815438000,-500.0,0.00029206,2]
[426775422,1782815438000,-500.0,0.00029206,2]
[426775424,1782815438000,-500.0,0.00029206,2]
[426775428,1782815438000,-500.0,0.00029226,2]
[426775431,1782815438000,-399.65151166,0.00029226,2]
[426775429,1782815438000,-500.0,0.00029226,2]
[426775419,1782815438000,-425.57858217,0.00029206,2]
[426775411,1782815438000,-1000.0,0.00029,2]
[426775410,1782815438000,-3014.98204214,0.00028967,2]
[426775407,1782815438000,-336.55653578,0.00028952,2]
[426775390,1782815438000,-4.56021045,0.00016806,2]
[426775391,1782815438000,-330.86,0.00018575,2]
[426775393,1782815438000,-156.15019799,0.0001938,7]
[426775394,1782815438000,-277.97682438,0.0001995,7]
[426775392,1782815438000,-156.15019799,0.00019,7]
[426775396,1782815438000,-156.15019799,0.0002052,7]
[426775395,1782815438000,-156.15019799,0.0001995,7]
[426775397,1782815438000,-156.15019801,0.0002128,7]
[426775398,1782815438000,-186.0,0.0002551,2]
[426775406,1782815438000,-500.0,0.00028952,2]
[426775399,1782815438000,-1000.0,0.00028,2]
[426775402,1782815438000,-300.0,0.00028951,2]
[426775400,1782815438000,-186.0,0.0002851,2]
[426775401,1782815438000,-267.23375206,0.00028689,17]
[426775404,1782815438000,-500.0,0.00028952,2]
[426775405,1782815438000,-500.0,0.00028952,2]
[426775403,1782815438000,-500.0,0.00028952,2]
[426775408,1782815438000,-248.96083718,0.00028952,2]
[426775426,1782815438000,-639.42,0.00029207,7]
[426775432,1782815438000,-500.0,0.00029226,2]
[426775430,1782815438000,-500.0,0.00029226,2]
[426775449,1782815438000,-315.1694284,0.00029395,2]
[426775448,1782815438000,-315.1694284,0.00029393,2]
[426775453,1782815438000,-500.0,0.00029396,2]
[426775455,1782815438000,-500.0,0.00029396,2]
[426775461,1782815438000,-315.1694284,0.00029398,2]
[426775457,1782815438000,-500.0,0.00029396,2]
[426775458,1782815438000,-500.0,0.00029396,2]
[426775451,1782815438000,-500.0,0.00029396,2]
[426775459,1782815438000,-500.0,0.00029396,2]
[426775463,1782815438000,-447.34693598,0.000294,2]
[426775462,1782815438000,-465.8236997,0.000294,2]
[426775465,1782815438000,-25851.69426334,0.000294,2]
[426775468,1782815438000,-29539.95604911,0.000294,2]
[426775466,1782815438000,-54006.49598259,0.000294,2]
[426775464,1782815438000,-315.1694284,0.000294,2]
[426775467,1782815438000,-41344.76778721,0.000294,2]
[426775460,1782815438000,-11111.21979296,0.00029397,2]
[426775454,1782815438000,-595.84726144,0.00029396,2]
[426775425,1782815438000,-245.8658178,0.00029206,2]
[426775450,1782815438000,-226.07462122,0.00029396,2]
[426775427,1782815438000,-301.48,0.00029207,5]
[426775433,1782815438000,-500.0,0.00029226,2]
[426775434,1782815438000,-500.0,0.00029226,2]
[426775435,1782815438000,-501.65750147,0.00029226,2]
[426775436,1782815438000,-151.5,0.00029226,2]
[426775442,1782815438000,-229.77593542,0.00029226,2]
[426775440,1782815438000,-151.5,0.00029226,2]
[426775438,1782815438000,-151.5,0.00029226,2]
[426775441,1782815438000,-151.5,0.00029226,2]
[426775439,1782815438000,-151.5,0.00029226,2]
[426775443,1782815438000,-9722.31731884,0.00029298,2]
[426775444,1782815438000,-315.16942844,0.0002939,2]
[426775446,1782815438000,-150.09,0.0002939,3]
[426775447,1782815438000,-450.29,0.0002939,3]
[426775445,1782815438000,-300.17,0.0002939,3]
[426775452,1782815438000,-500.0,0.00029396,2]
[426775437,1782815438000,-191.30302818,0.00029226,2]
[426775456,1782815438000,-500.0,0.00029396,2]
[426775497,1782815446000,-8176.40432532,0.000294,2]
[426775561,1782815548000,-212.954,0.0002615,2]
[426775563,1782816272000,1000.0,0.00030136,30]
[426775566,1782816382000,2000.649376,0.00030136,30]
[426775569,1782816443000,2000.00000087,0.00030136,40]
[426775629,1782816638000,-453.0,0.00023413,2]
[426775630,1782816638000,-1768.42927243,0.00023649,2]
[426776390,1782816646000,-2215.0,0.0002615,2]
[426776392,1782816646000,-212.954,0.0002615,2]
[426776394,1782816646000,-511.53,0.00029203,7]
[426776396,1782816646000,-2261.2365316,0.000294,2]
[426776388,1782816646000,-3231.57072757,0.00023649,2]
[426776412,1782816646000,-193.98509087,0.00029489,2]
[426776398,1782816646000,-367.84568317,0.000294,2]
[426776410,1782816646000,-1190.54766732,0.000294,2]
[426776400,1782816646000,-669.68306287,0.000294,2]
[426776402,1782816646000,-465.60998778,0.000294,2]
[426776408,1782816646000,-36663.34249959,0.000294,2]
[426776404,1782816646000,-420.39506648,0.000294,2]
[426776406,1782816646000,-8507.02765395,0.000294,2]
[426776426,1782816646000,-500.0,0.00029499,2]
[426776430,1782816646000,-217.093083,0.00029499,2]
[426776428,1782816646000,-500.0,0.00029499,2]
[426776424,1782816646000,-500.0,0.00029499,2]
[426776420,1782816646000,-816.1,0.0002949,3]
[426776416,1782816646000,-356.45,0.0002949,3]
[426776418,1782816646000,-272.03,0.0002949,3]
[426776414,1782816646000,-152.90302268,0.00029489,2]
[426776422,1782816646000,-500.0,0.00029499,2]
[426776436,1782816647000,-500.0,0.00029499,2]
[426776440,1782816647000,-229419.21757756,0.000295,2]
[426776438,1782816647000,-158.25223485,0.00029499,2]
[426776432,1782816647000,-500.0,0.00029499,2]
[426776434,1782816647000,-500.0,0.00029499,2]
[426777269,1782817048000,79133.3576926,7.6e-05,2]
[426777270,1782817052000,215.08095502,0.0001,2]
[426777273,1782817056000,408.78849787,0.00012,2]
[426777274,1782817177000,765.0,0.00030137,30]
[426777276,1782817253000,-306.84,0.00012825,2]
[426777277,1782817275000,344.32903048,0.00029137,60]
[426777278,1782817287000,2306.47683129,0.00012,2]
[426777382,1782817743000,626.5,0.00030136,30]
[426777383,1782817743000,626.5,0.00030136,30]
[426777384,1782817743000,626.5,0.00030136,30]
[426777385,1782817744000,626.5,0.00030136,30]
[426777446,1782817832000,-500.23312994,0.00015,2]
[426777440,1782817832000,-433.45811007,0.00015,2]
[426777437,1782817832000,-3297.01243159,0.00015,2]
[426777433,1782817832000,-1991.37697728,0.00015,2]
[426777429,1782817832000,-306.84,0.00014175,2]
[426777431,1782817832000,-300.0,0.00014999,2]
[426777436,1782817832000,-1070.20752218,0.00015,2]
[426777427,1782817832000,-250.14976654,0.000135,2]
[426777453,1782817838000,-252.39845507,0.00015,2]
[426777455,1782817838000,-457.58831124,0.00018,2]
[426777459,1782817838000,-160.26983506,0.00023259,2]
[426777454,1782817838000,-516.89787333,0.00015,2]
[426777460,1782817838000,-186.0,0.00024789,2]
[426777458,1782817838000,-356.3045097,0.00019,2]
[426777461,1782817838000,-1978.667,0.0002616,2]
[426777457,1782817838000,-648.83490356,0.00018,2]
[426777462,1782817838000,-754.92868096,0.0002616,2]
[426777494,1782817847000,-227.24168942,0.00026623,2]
[426777493,1782817847000,-656.21042408,0.00026533,2]
[426777491,1782817847000,-666.07131904,0.0002616,2]
[426777492,1782817847000,-221.014379,0.0002616,2]
[426777648,1782819033000,-2275.08223185,0.00026411,2]
[426777642,1782819033000,-186.0,0.00026169,2]
[426777658,1782819033000,-500.0,0.00027106,2]
[426777654,1782819033000,-500.0,0.00027106,2]
[426777631,1782819033000,-1497.11482284,0.00023787,2]
[426777638,1782819033000,-212.97607409,0.00025292,2]
[426777636,1782819033000,-1631.12881003,0.00024027,2]
[426777634,1782819033000,-3502.88517716,0.00023787,2]
[426777646,1782819033000,-1033.55324953,0.00026411,2]
[426777652,1782819033000,-500.0,0.00027106,2]
[426777640,1782819033000,-245.0,0.00026168,2]
[426777656,1782819033000,-500.0,0.00027106,2]
[426777644,1782819033000,-448.333,0.00026169,2]
[426777666,1782819033000,-236.32909499,0.00027106,2]
[426777682,1782819033000,-1547.65155936,0.00027111,2]
[426777668,1782819033000,-500.0,0.00027109,2]
[426777685,1782819033000,-1156.77091289,0.00027111,2]
[426777678,1782819033000,-777.86584549,0.00027111,2]
[426777674,1782819033000,-4140.38915285,0.00027111,2]
[426777670,1782819033000,-500.0,0.0002711,2]
[426777676,1782819033000,-2209.65270109,0.00027111,2]
[426777687,1782819033000,-7150.00049818,0.00027111,2]
[426777672,1782819033000,-500.0,0.0002711,2]
[426777661,1782819033000,-500.0,0.00027106,2]
[426777769,1782819038000,-7866.36120809,0.00027111,2]
[426777770,1782819038000,-309.97723342,0.00027111,2]
[426777767,1782819038000,-1270.48060157,0.00027111,2]
[426777766,1782819038000,-666.071,0.00026169,2]
[426777772,1782819038000,-933.43019471,0.00027111,2]
[426777768,1782819038000,-4436.69521524,0.00027111,2]
[426777780,1782819040000,-3321.87226438,0.00027111,2]
[426777782,1782819041000,-10213.2089443,0.00027111,2]
[426777781,1782819041000,-2321.52644053,0.00027111,2]
[426777846,1782819047000,-220.7233583,0.00028083,2]
[426777852,1782819047000,-1189.798289,0.00028818,2]
[426777856,1782819047000,-2255.50156895,0.00028967,2]
[426777839,1782819047000,-233.29555754,0.00028017,7]
[426777854,1782819047000,-934.7020076,0.00028818,2]
[426777858,1782819047000,-156.0,0.00029,2]
[426777850,1782819047000,-172.7520769,0.00028373,2]
[426777851,1782819047000,-1035.27980093,0.00028669,7]
[426777845,1782819047000,-151.0,0.00028024,2]
[426777848,1782819047000,-434.5693219,0.00028099,2]
[426777832,1782819047000,-156.0,0.00028,2]
[426777863,1782819047000,-655.53101504,0.00029119,2]
[426777841,1782819047000,-168.20601932,0.00028024,2]
[426777826,1782819047000,-1007.0,0.00027215,3]
[426777824,1782819047000,-53287.8094428,0.00027111,2]
[426777828,1782819047000,-171.0560166,0.00027438,2]
[426777823,1782819047000,-1845.0,0.00026169,2]
[426777837,1782819047000,-1326.46872884,0.00028,2]
[426777835,1782819047000,-155.0,0.00028,2]
[426777833,1782819047000,-300.0,0.00028,2]
[426777830,1782819047000,-162.7270599,0.00028,2]
[426777860,1782819047000,-155.0,0.00029,2]
[426777873,1782819047000,-628.49,0.0002939,3]
[426777843,1782819047000,-184.02126574,0.00028024,2]
[426777874,1782819047000,-385.31659547,0.000294,2]
[426777862,1782819047000,-401.84,0.000291,2]
[426777887,1782819047000,-8750.33523905,0.000295,2]
[426777888,1782819047000,-753.623,0.00029169,2]
[426777889,1782819047000,-28.47873801,0.000295,2]
[426777883,1782819047000,-578.11657733,0.000294,2]
[426777882,1782819047000,-321.17587629,0.000294,2]
[426777881,1782819047000,-800.54782614,0.000294,2]
[426777880,1782819047000,-190.90758996,0.000294,2]
[426777879,1782819047000,-151.0,0.000294,20]
[426777878,1782819047000,-151.0,0.000294,10]
[426777886,1782819047000,-28668.00300071,0.000295,2]
[426777884,1782819047000,-86450.93710397,0.000294,2]
[426777885,1782819047000,-7840.81515833,0.000294,2]
[426777877,1782819047000,-512.8634722,0.000294,2]
[426777868,1782819047000,-500.0,0.00029198,3]
[426777875,1782819047000,-352.24139575,0.000294,2]
[426777869,1782819047000,-8779.67517862,0.00029199,5]
[426777870,1782819047000,-151.0,0.000293,20]
[426777872,1782819047000,-209.49,0.0002939,3]
[426777871,1782819047000,-300.0,0.00029321,13]
[426777865,1782819047000,-186.0,0.00029169,2]
[426777867,1782819047000,-409.23,0.00029198,7]
[426777866,1782819047000,-446.0,0.00029169,2]
[426777876,1782819047000,-288.48570311,0.000294,2]
[426777906,1782819049000,-458474.98202355,0.000295,2]
[426777907,1782819049000,-369612.59627747,0.000295,2]
[426777911,1782819201000,180.42472336,0.000219,30]
[426777912,1782819267000,208.07535283,0.00029199,120]
[426778036,1782820242000,-4242.0,0.00015,2]
[426778035,1782820242000,-758.0,0.00015,2]
[426778037,1782820242000,-4658.06963251,0.00015,2]
[426778056,1782820244000,-165.92527549,0.00026489,2]
[426778055,1782820244000,-198.70446601,0.00022885,5]
[426778054,1782820244000,-341.93036749,0.00015,2]
[426778073,1782820247000,-343.29002827,0.000294,2]
[426778065,1782820247000,-500.0,0.0002711,2]
[426778064,1782820247000,-587.69772451,0.00026489,2]
[426778066,1782820247000,-153.0,0.00028,2]
[426778068,1782820247000,-153.0,0.00029,2]
[426778069,1782820247000,-171.68711211,0.00029,2]
[426778071,1782820247000,-327.38,0.00029201,7]
[426778067,1782820247000,-156.0,0.00028,2]
[426778070,1782820247000,-221.014379,0.00029195,10]
[426778079,1782820247000,-2925.78588467,0.000294,2]
[426778078,1782820247000,-405.59803382,0.000294,2]
[426778077,1782820247000,-687.3772837,0.000294,2]
[426778075,1782820247000,-486.83496549,0.000294,2]
[426778074,1782820247000,-257.35645502,0.000294,2]
[426778072,1782820247000,-440.36182339,0.000294,2]
[426778076,1782820247000,-540.92783865,0.000294,2]
[426778081,1782820658000,8345.70348537,0.000118,5]
[426778881,1782821302000,332.52,0.0001235,2]
[426778934,1782821431000,-195.40411007,0.00013,2]
[426778936,1782821431000,-324.27046276,0.00013,2]
[426778938,1782821431000,-8.24953724,0.00013,2]
[426778940,1782821431000,-160.27082225,0.00013,7]
[426778942,1782821431000,-332.52,0.0001365,2]
[426778948,1782821431000,-418.0,0.00016438,2]
[426778950,1782821431000,-435.12726995,0.00018,2]
[426778951,1782821431000,-444.53998694,0.00019,2]
[426778954,1782821431000,-2741.07540973,0.0002602,2]
[426778956,1782821431000,-567.42689538,0.0002602,2]
[426778946,1782821431000,-798.77180218,0.00015,2]
[426778944,1782821431000,-169.89964051,0.00015,2]
[426779078,1782821441000,-2950.0,0.0002602,2]
[426779186,1782821446000,-265.97212871,0.00026533,2]
[426779182,1782821446000,-95.20208929,0.0002602,2]
[426779184,1782821446000,-186.0,0.00026489,2]
[426779397,1782822107000,-151.0,0.00014863,7]
[426779475,1782822430000,2011.23131903,0.0003,120]
[426779538,1782822634000,-1043.04771442,0.00013,2]
[426779541,1782822635000,-249.53811007,0.00015,2]
[426779539,1782822635000,-15.96,0.00014863,7]
[426779540,1782822635000,-167.96,0.00015,7]
[426779648,1782822638000,-500.0,0.00026532,2]
[426779635,1782822638000,-2864.97069856,0.00026433,2]
[426779637,1782822638000,-500.0,0.00026532,2]
[426779632,1782822638000,-7546.79897581,0.00026433,2]
[426779611,1782822638000,-1493.47364304,0.00021612,2]
[426779619,1782822638000,-764.01049651,0.0002289,2]
[426779613,1782822638000,-315.0,0.00022202,2]
[426779609,1782822638000,-158.0,0.00021258,2]
[426779622,1782822638000,-230.91460885,0.00023941,5]
[426779617,1782822638000,-266.588203,0.0002289,2]
[426779624,1782822638000,-194.263126,0.00024837,2]
[426779626,1782822638000,-2798.528564,0.000249,2]
[426779629,1782822638000,-178.002256,0.00026271,2]
[426779627,1782822638000,-1282.0604,0.000261,2]
[426779615,1782822638000,-153.78275799,0.00022884,5]
[426779602,1782822638000,-183.92,0.00015,2]
[426779604,1782822638000,-5000.0,0.00015,2]
[426779639,1782822638000,-500.0,0.00026532,2]
[426779606,1782822638000,-250.90147616,0.0001698,2]
[426779656,1782822638000,-500.0,0.00026532,2]
[426779663,1782822638000,-500.0,0.00026532,2]
[426779667,1782822638000,-500.0,0.00026532,2]
[426779650,1782822638000,-500.0,0.00026532,2]
[426779679,1782822638000,-500.0,0.00026532,2]
[426779680,1782822638000,-500.0,0.00026532,2]
[426779676,1782822638000,-500.0,0.00026532,2]
[426779682,1782822638000,-500.0,0.00026532,2]
[426779677,1782822638000,-500.0,0.00026532,2]
[426779678,1782822638000,-500.0,0.00026532,2]
[426779675,1782822638000,-500.0,0.00026532,2]
[426779673,1782822638000,-544.01695846,0.00026532,2]
[426779674,1782822638000,-640.28046384,0.00026532,2]
[426779681,1782822638000,-500.0,0.00026532,2]
[426779671,1782822638000,-587.78978039,0.00026532,2]
[426779669,1782822638000,-500.0,0.00026532,2]
[426779658,1782822638000,-500.0,0.00026532,2]
[426779654,1782822638000,-500.0,0.00026532,2]
[426779652,1782822638000,-500.0,0.00026532,2]
[426779660,1782822638000,-500.0,0.00026532,2]
[426779664,1782822638000,-500.0,0.00026532,2]
[426779672,1782822638000,-500.0,0.00026532,2]
[426779670,1782822638000,-500.0,0.00026532,2]
[426779709,1782822639000,-349.94333633,0.0002786,7]
[426779721,1782822639000,-500.0,0.00028023,3]
[426779715,1782822639000,-157.0,0.00028,2]
[426779714,1782822639000,-156.0,0.00028,2]
[426779707,1782822639000,-186.0,0.00027842,2]
[426779716,1782822639000,-285.82881083,0.00028,2]
[426779713,1782822639000,-2864.97069853,0.00027925,2]
[426779712,1782822639000,-1109.0904,0.000279,3]
[426779719,1782822639000,-500.0,0.00028023,2]
[426779717,1782822639000,-152.0,0.00028,2]
[426779722,1782822639000,-500.0,0.00028023,2]
[426779730,1782822639000,-500.0,0.00028024,7]
[426779725,1782822639000,-500.0,0.00028024,7]
[426779727,1782822639000,-500.0,0.00028024,7]
[426779729,1782822639000,-500.0,0.00028024,7]
[426779728,1782822639000,-500.0,0.00028024,7]
[426779724,1782822639000,-194.72,0.00028024,2]
[426779731,1782822639000,-500.0,0.00028024,7]
[426779726,1782822639000,-500.0,0.00028024,7]
[426779723,1782822639000,-500.0,0.00028023,2]
[426779711,1782822639000,-4637.20731991,0.00027892,2]
[426779732,1782822639000,-500.0,0.00028024,7]
[426779733,1782822639000,-500.0,0.00028024,7]
[426779734,1782822639000,-500.0,0.00028024,7]
[426779720,1782822639000,-500.0,0.00028023,7]
[426779710,1782822639000,-500.0,0.00027891,2]
[426779701,1782822639000,-500.0,0.00027792,2]
[426779708,1782822639000,-315.0,0.0002785,10]
[426779735,1782822639000,-500.0,0.00028024,7]
[426779683,1782822639000,-500.0,0.00026532,2]
[426779685,1782822639000,-500.0,0.00026532,2]
[426779684,1782822639000,-500.0,0.00026532,2]
[426779687,1782822639000,-500.0,0.00026532,2]
[426779686,1782822639000,-500.0,0.00026532,2]
[426779690,1782822639000,-1604.27350209,0.00026533,2]
[426779689,1782822639000,-435.96502342,0.00026533,2]
[426779691,1782822639000,-294.12166288,0.00026533,2]
[426779694,1782822639000,-2864.97069853,0.00027179,2]
[426779688,1782822639000,-231.97664226,0.00026532,2]
[426779718,1782822639000,-418.98,0.00028015,3]
[426779692,1782822639000,-459.10553315,0.00026533,2]
[426779695,1782822639000,-2864.97069853,0.00027552,2]
[426779696,1782822639000,-500.0,0.00027739,2]
[426779697,1782822639000,-500.0,0.00027792,2]
[426779700,1782822639000,-500.0,0.00027792,2]
[426779698,1782822639000,-276.21870709,0.00027792,2]
[426779699,1782822639000,-450.40751007,0.00027792,2]
[426779706,1782822639000,-300.0,0.00027792,2]
[426779705,1782822639000,-500.0,0.00027792,2]
[426779702,1782822639000,-500.0,0.00027792,2]
[426779704,1782822639000,-500.0,0.00027792,2]
[426779703,1782822639000,-500.0,0.00027792,2]
[426779693,1782822639000,-2864.97069853,0.00026806,2]
[426779739,1782822639000,-500.0,0.00028024,7]
[426779742,1782822639000,-500.0,0.00028024,7]
[426779737,1782822639000,-500.0,0.00028024,7]
[426779775,1782822639000,-500.0,0.00028024,2]
[426779773,1782822639000,-500.0,0.00028024,2]
[426779774,1782822639000,-500.0,0.00028024,2]
[426779776,1782822639000,-500.0,0.00028024,2]
[426779781,1782822639000,-500.0,0.00028024,2]
[426779782,1782822639000,-500.0,0.00028024,2]
[426779777,1782822639000,-500.0,0.00028024,2]
[426779772,1782822639000,-500.0,0.00028024,2]
[426779771,1782822639000,-500.0,0.00028024,2]
[426779779,1782822639000,-500.0,0.00028024,2]
[426779780,1782822639000,-500.0,0.00028024,2]
[426779770,1782822639000,-500.0,0.00028024,2]
[426779784,1782822639000,-500.0,0.00028024,2]
[426779785,1782822639000,-500.0,0.00028024,2]
[426779783,1782822639000,-500.0,0.00028024,2]
[426779790,1782822639000,-500.0,0.00028024,2]
[426779791,1782822639000,-303.03340303,0.00028024,2]
[426779799,1782822639000,-260.33621893,0.00028663,2]
[426779798,1782822639000,-7546.79897578,0.00028457,2]
[426779793,1782822639000,-169.12,0.00028025,2]
[426779795,1782822639000,-178.002256,0.00028114,2]
[426779796,1782822639000,-330.585,0.00028148,5]
[426779797,1782822639000,-431.6831,0.00028149,2]
[426779740,1782822639000,-500.0,0.00028024,7]
[426779787,1782822639000,-500.0,0.00028024,2]
[426779764,1782822639000,-1000.0,0.00028024,2]
[426779792,1782822639000,-415253.76408531,0.00028025,2]
[426779762,1782822639000,-1000.0,0.00028024,2]
[426779736,1782822639000,-500.0,0.00028024,7]
[426779760,1782822639000,-1000.0,0.00028024,2]
[426779741,1782822639000,-500.0,0.00028024,7]
[426779794,1782822639000,-696.51,0.00028025,2]
[426779745,1782822639000,-434.2123674,0.00028024,7]
[426779746,1782822639000,-1000.0,0.00028024,2]
[426779744,1782822639000,-500.0,0.00028024,7]
[426779747,1782822639000,-1000.0,0.00028024,2]
[426779754,1782822639000,-1000.0,0.00028024,2]
[426779750,1782822639000,-1000.0,0.00028024,2]
[426779743,1782822639000,-500.0,0.00028024,7]
[426779753,1782822639000,-1000.0,0.00028024,2]
[426779748,1782822639000,-1000.0,0.00028024,2]
[426779751,1782822639000,-1000.0,0.00028024,2]
[426779766,1782822639000,-1000.0,0.00028024,2]
[426779755,1782822639000,-1000.0,0.00028024,2]
[426779765,1782822639000,-1000.0,0.00028024,2]
[426779758,1782822639000,-1000.0,0.00028024,2]
[426779761,1782822639000,-1000.0,0.00028024,2]
[426779768,1782822639000,-152.61703985,0.00028024,2]
[426779756,1782822639000,-1000.0,0.00028024,2]
[426779767,1782822639000,-1000.0,0.00028024,2]
[426779757,1782822639000,-1000.0,0.00028024,2]
[426779769,1782822639000,-500.0,0.00028024,2]
[426779749,1782822639000,-1000.0,0.00028024,2]
[426779759,1782822639000,-1000.0,0.00028024,2]
[426779821,1782822640000,-500.0,0.00028952,2]
[426779819,1782822640000,-500.0,0.00028952,2]
[426779823,1782822640000,-500.0,0.00028952,2]
[426779835,1782822640000,-500.0,0.00028952,2]
[426779837,1782822640000,-536.99445516,0.00028952,2]
[426779839,1782822640000,-500.0,0.00028952,2]
[426779841,1782822640000,-500.0,0.00028952,2]
[426779851,1782822640000,-500.0,0.00028952,2]
[426779843,1782822640000,-500.0,0.00028952,2]
[426779847,1782822640000,-500.0,0.00028952,2]
[426779849,1782822640000,-261.13287135,0.00028952,2]
[426779863,1782822640000,-151.5,0.00028952,2]
[426779861,1782822640000,-500.0,0.00028952,2]
[426779853,1782822640000,-151.5,0.00028952,2]
[426779833,1782822640000,-500.0,0.00028952,2]
[426779855,1782822640000,-500.0,0.00028952,2]
[426779845,1782822640000,-500.0,0.00028952,2]
[426779831,1782822640000,-500.0,0.00028952,2]
[426779807,1782822640000,-500.0,0.00028952,2]
[426779827,1782822640000,-500.0,0.00028952,2]
[426779857,1782822640000,-151.5,0.00028952,2]
[426779800,1782822640000,-11025.5505529,0.0002871,2]
[426779801,1782822640000,-378040.03786003,0.0002871,2]
[426779802,1782822640000,-151.0,0.0002871,7]
[426779806,1782822640000,-500.0,0.00028952,2]
[426779810,1782822640000,-500.0,0.00028952,2]
[426779808,1782822640000,-500.0,0.00028952,2]
[426779812,1782822640000,-500.0,0.00028952,2]
[426779804,1782822640000,-156.76,0.00028929,15]
[426779803,1782822640000,-151.0,0.0002871,7]
[426779813,1782822640000,-516.65958528,0.00028952,2]
[426779805,1782822640000,-500.0,0.00028952,2]
[426779811,1782822640000,-513.24407906,0.00028952,2]
[426779809,1782822640000,-625.84481941,0.00028952,2]
[426779815,1782822640000,-500.0,0.00028952,2]
[426779817,1782822640000,-500.0,0.00028952,2]
[426779825,1782822640000,-500.0,0.00028952,2]
[426779829,1782822640000,-500.0,0.00028952,2]
[426779859,1782822640000,-151.5,0.00028952,2]
[426779884,1782822640000,-5587.6771511,0.00029107,2]
[426779865,1782822640000,-160.95897823,0.00028952,2]
[426779895,1782822640000,-534.073543,0.00029278,2]
[426779907,1782822640000,-403.31609344,0.000294,2]
[426779908,1782822640000,-194.21358695,0.000294,2]
[426779898,1782822640000,-151.0,0.00029278,2]
[426779897,1782822640000,-151.0,0.00029278,2]
[426779900,1782822640000,-459.4707811,0.00029278,2]
[426779904,1782822640000,-327.9397334,0.00029278,2]
[426779906,1782822640000,-199.65730806,0.000294,2]
[426779903,1782822640000,-151.0,0.00029278,2]
[426779905,1782822640000,-185.20716631,0.000294,2]
[426779911,1782822640000,-795.43340294,0.000295,2]
[426779867,1782822640000,-500.0,0.00028952,2]
[426779909,1782822640000,-15786.542916,0.00029498,2]
[426779912,1782822640000,-5602.09581458,0.000295,2]
[426779926,1782822640000,-151.0,0.0002871,7]
[426779927,1782822640000,-473.78739701,0.000295,2]
[426779902,1782822640000,-327.9397334,0.00029278,2]
[426779893,1782822640000,-151.0,0.00029278,2]
[426779910,1782822640000,-419464.26038886,0.000295,2]
[426779891,1782822640000,-151.0,0.000292,2]
[426779869,1782822640000,-500.0,0.00028952,2]
[426779871,1782822640000,-270.21742426,0.00028952,2]
[426779881,1782822640000,-160.0,0.00029049,3]
[426779873,1782822640000,-156.76,0.00028979,15]
[426779875,1782822640000,-156.0,0.00029,2]
[426779877,1782822640000,-171.0,0.00029,2]
[426779879,1782822640000,-154.0,0.00029,2]
[426779882,1782822640000,-156.76,0.00029079,15]
[426779880,1782822640000,-156.76,0.00029029,15]
[426779889,1782822640000,-327.9397335,0.000292,2]
[426779885,1782822640000,-156.78,0.00029129,15]
[426779890,1782822640000,-151.0,0.000292,2]
[426779886,1782822640000,-167.6,0.00029146,2]
[426779894,1782822640000,-159.988674,0.00029278,2]
[426779887,1782822640000,-1355.8712756,0.00029175,2]